[Event "DVM U20w 2019"]
[Site "Braunschweig"]
[Date "2019.12.29"]
[Round "6"]
[White "Margaryan, Venera"]
[Black "Schmidt, Pauline"]
[Result "1-0"]
[ECO "A46"]
[WhiteElo "1383"]
[BlackElo "1628"]
[Annotator "NA"]
[PlyCount "57"]
[EventDate "2019.12.27"]
[EventType "team-tourn"]
[EventRounds "7"]
[EventCountry "GER"]
[SourceTitle "playchess.com"]
[Source "ChessBase"]
[SourceQuality "1"]
[WhiteTeam "SK Lehrte 1919"]
[BlackTeam "SG Blau-Weiß Stadtilm"]
[WhiteTeamCountry "GER"]
[TimeControl "40/5400+30:1800+30"]

1. d4 {[%emt 0:00:00]} Nf6 {[%emt 0:00:00]} 2. Nf3 {[%emt 0:00:00]} e6 {[%emt 0:00:00]} 3. Bg5 {[%emt 0:00:08]} Be7 {[%emt 0:00:50]} 4. e3 {[%emt 0:00:13]} O-O {[%emt 0:00:19]} 5. Bd3 {[%emt 0:00:37]} d5 {[%emt 0:00:13]} 6. c3 {[%emt 0:00:31]} c5 {[%emt 0:02:26]} 7. Nbd2 {[%emt 0:02:11]} Nbd7 {[%emt 0:04:46]} 8. O-O {[%emt 0:02:02]} c4 {[%emt 0:06:28]} 9. Bc2 {[%emt 0:00:21]} b5 {[%emt 0:05:56]} 10. a3 {[%emt 0:02:12]} a5 {[%emt 0:01:44]} 11. Qb1 {[%emt 0:06:59]} h6 {[%emt 0:01:20]} 12. Bxf6 {[%emt 0:01:44]} Nxf6 {[%emt 0:00:33]} 13. Ne5 {[%emt 0:00:42]} Ba6 {[%emt 0:02:48]} 14. f4 {[%emt 0:04:30]} b4 {[%emt 0:01:05]} 15. Nc6 {[%emt 0:05:29]} Qc7 {[%emt 0:01:31]} 16. Nxe7+ {[%emt 0:03:27]} Qxe7 {[%emt 0:00:07]} 17. axb4 {[%emt 0:01:28]} axb4 {[%emt 0:00:10]} 18. Qe1 {[%emt 0:02:02]} Rfb8 {[%emt 0:01:55]} 19. Nf3 {[%emt 0:09:47]} bxc3 {[%emt 0:04:36]} 20. bxc3 {[%emt 0:00:21]} Rb2 {[%emt 0:02:06]} 21. Rf2 {[%emt 0:02:42]} Qb7 {[%emt 0:03:16]} 22. Qc1 {[%emt 0:04:24]} Rb6 {[%emt 0:03:50]} 23. Ne5 {[%emt 0:02:35]} Rb8 {[%emt 0:08:42]} 24. f5 {[%emt 0:05:04]} Bb5 {[%emt 0:16:36]} 25. fxe6 {[%emt 0:01:24]} Rxe6 {[%emt 0:02:32]} 26. Qd1 {[%emt 0:01:35]} Ra6 {[%emt 0:03:45]} 27. Rb1 {[%emt 0:07:56]} Ra3 {[%emt 0:02:26]} 28. Qe1 {[%emt 0:02:32]} Qa6 {[%emt 0:03:35]} 29. Bf5 {[%emt 0:06:04] normal} 1-0

[Event "DVM U20w 2019"]
[Site "Braunschweig"]
[Date "2019.12.29"]
[Round "6"]
[White "Kessen, Fanny"]
[Black "Schwalbach, Kathrin"]
[Result "0-1"]
[ECO "C50"]
[WhiteElo "1265"]
[BlackElo "1137"]
[Annotator "NA"]
[PlyCount "62"]
[EventDate "2019.12.27"]
[EventType "team-tourn"]
[EventRounds "7"]
[EventCountry "GER"]
[SourceTitle "playchess.com"]
[Source "ChessBase"]
[SourceQuality "1"]
[WhiteTeam "SC Borussia Lichtenberg"]
[BlackTeam "SG Trier"]
[TimeControl "40/5400+30:1800+30"]

1. e4 {[%emt 0:00:00]} e5 {[%emt 0:00:00]} 2. Nf3 {[%emt 0:00:00]} Nc6 {[%emt 0:00:00]} 3. Bc4 {[%emt 0:00:00]} Bc5 {[%emt 0:00:10]} 4. d3 {[%emt 0:00:00]} Nf6 {[%emt 0:00:34]} 5. c3 {[%emt 0:00:25]} O-O {[%emt 0:01:18]} 6. Bb3 {[%emt 0:00:20]} Re8 {[%emt 0:01:37]} 7. O-O {[%emt 0:00:15]} h6 {[%emt 0:01:10]} 8. Re1 {[%emt 0:01:40]} d5 {[%emt 0:00:44]} 9. exd5 {[%emt 0:01:50]} Nxd5 {[%emt 0:00:22]} 10. Nbd2 {[%emt 0:00:58]} Nf4 {[%emt 0:03:46]} 11. Ne4 {[%emt 0:02:05]} Bb6 {[%emt 0:03:27]} 12. d4 {[%emt 0:01:36]} Ng6 {[%emt 0:03:37]} 13. d5 {[%emt 0:02:56]} Na5 {[%emt 0:03:43]} 14. Bc2 {[%emt 0:02:28]} Bf5 {[%emt 0:03:03]} 15. a4 {[%emt 0:01:58]} Bxe4 {[%emt 0:01:29]} 16. Bxe4 {[%emt 0:00:19]} Qf6 {[%emt 0:00:39]} 17. b4 {[%emt 0:00:40]} c6 {[%emt 0:04:29]} 18. bxa5 {[%emt 0:00:59]} Bxa5 {[%emt 0:00:11]} 19. Bb2 {[%emt 0:01:45]} Rad8 {[%emt 0:00:48]} 20. Qb3 {[%emt 0:01:21]} Re7 {[%emt 0:04:18]} 21. dxc6 bxc6 22. Rad1 {[%emt 0:03:12]} Ree8 {[%emt 0:01:50]} 23. Rxd8 {[%emt 0:03:09]} Rxd8 {[%emt 0:03:47]} 24. Rc1 {[%emt 0:02:20]} Nf4 {[%emt 0:01:02]} 25. Re1 {[%emt 0:03:32]} Nd3 {[%emt 0:01:46]} 26. Bxd3 {[%emt 0:03:10]} Rxd3 {[%emt 0:00:29]} 27. Rxe5 {[%emt 0:01:04]} Qg6 {[%emt 0:01:18]} 28. Nh4 {[%emt 0:04:37]} Qg4 {[%emt 0:05:30]} 29. f3 {[%emt 0:04:40]} Qxh4 {[%emt 0:00:37]} 30. Re4 {[%emt 0:14:27]} Qf6 {[%emt 0:08:34]} 31. Re8+ {[%emt 0:01:47]} Kh7 {[%emt 0:00:20] normal} 0-1

[Event "DVM U20w 2019"]
[Site "Braunschweig"]
[Date "2019.12.29"]
[Round "6"]
[White "Nanthivarman, Merymuthu"]
[Black "Peglau, Dora"]
[Result "0-1"]
[ECO "B12"]
[WhiteElo "1260"]
[BlackElo "1502"]
[Annotator "NA"]
[PlyCount "61"]
[EventDate "2019.12.27"]
[EventType "team-tourn"]
[EventRounds "7"]
[EventCountry "GER"]
[SourceTitle "playchess.com"]
[Source "ChessBase"]
[SourceQuality "1"]
[WhiteTeam "OSG Baden-Baden"]
[BlackTeam "Schachzentrum Seeblick"]
[TimeControl "40/5400+30:1800+30"]

1. e4 {[%emt 0:00:00]} c6 {[%emt 0:00:00]} 2. d4 {[%emt 0:00:00]} d5 {[%emt 0:00:00]} 3. e5 {[%emt 0:00:00]} Bf5 {[%emt 0:00:00]} 4. Be3 {[%emt 0:00:03]} e6 {[%emt 0:00:00]} 5. Nf3 {[%emt 0:00:16]} Nd7 {[%emt 0:00:42]} 6. Nbd2 {[%emt 0:00:11]} Bg6 {[%emt 0:01:41]} 7. Be2 {[%emt 0:01:05]} c5 {[%emt 0:02:19]} 8. c3 {[%emt 0:00:26]} Nh6 {[%emt 0:02:01]} 9. h3 {[%emt 0:03:27]} Nf5 {[%emt 0:01:40]} 10. O-O {[%emt 0:01:54]} Be7 {[%emt 0:01:33]} 11. Rc1 {[%emt 0:09:34]} O-O {[%emt 0:01:59]} 12. Re1 {[%emt 0:11:11]} Rc8 {[%emt 0:02:46]} 13. Bb5 {[%emt 0:22:59]} a6 {[%emt 0:02:25]} 14. Ba4 {[%emt 0:01:46]} b5 {[%emt 0:01:22]} 15. Bc2 {[%emt 0:04:29]} cxd4 {[%emt 0:02:21]} 16. cxd4 {[%emt 0:03:40]} Nxe3 {[%emt 0:01:29]} 17. Rxe3 {[%emt 0:00:53]} Qb6 {[%emt 0:11:01]} 18. Bxg6 {[%emt 0:04:05]} hxg6 {[%emt 0:01:37]} 19. Rec3 {[%emt 0:00:35]} Qb7 {[%emt 0:00:50]} 20. Qb3 {[%emt 0:01:43]} Nb6 {[%emt 0:02:22]} 21. Qd1 {[%emt 0:06:27]} Nc4 {[%emt 0:05:43]} 22. R3c2 {[%emt 0:05:03]} Nxd2 {[%emt 0:07:37]} 23. Nxd2 {[%emt 0:01:00]} Bg5 {[%emt 0:08:42]} 24. Rxc8 {[%emt 0:03:04]} Rxc8 {[%emt 0:00:36]} 25. Rxc8+ {[%emt 0:00:06]} Qxc8 {[%emt 0:00:08]} 26. Nb3 {[%emt 0:00:16]} Qc4 {[%emt 0:02:11]} 27. a3 {[%emt 0:01:16]} Be7 {[%emt 0:06:11]} 28. Na5 {[%emt 0:01:52]} Qc7 {[%emt 0:01:06]} 29. Qd2 {[%emt 0:00:48]} Bd8 {[%emt 0:06:03]} 30. b4 {[%emt 0:00:49]} Qc8 {[%emt 0:06:14]} 31. Nb3 {[%emt 0:02:01] normal} 0-1

[Event "DVM U20w 2019"]
[Site "Braunschweig"]
[Date "2019.12.29"]
[Round "6"]
[White "Stephan, Lia"]
[Black "Thiele, Lea-Marie"]
[Result "1-0"]
[ECO "A16"]
[WhiteElo "1232"]
[BlackElo "1061"]
[Annotator "NA"]
[PlyCount "94"]
[EventDate "2019.12.27"]
[EventType "team-tourn"]
[EventRounds "7"]
[EventCountry "GER"]
[SourceTitle "playchess.com"]
[Source "ChessBase"]
[SourceQuality "1"]
[WhiteTeam "SG Blau-Weiß Stadtilm"]
[BlackTeam "SK Lehrte 1919"]
[TimeControl "40/5400+30:1800+30"]

1. c4 {[%emt 0:00:00]} Nf6 {[%emt 0:00:02]} 2. Nc3 {[%emt 0:00:00]} g6 {[%emt 0:00:27]} 3. g3 {[%emt 0:00:37]} Bg7 {[%emt 0:00:09]} 4. Bg2 {[%emt 0:00:20]} d6 {[%emt 0:03:46]} 5. e4 {[%emt 0:01:11]} Nc6 {[%emt 0:01:00]} 6. d3 {[%emt 0:01:50]} Nd4 {[%emt 0:03:41]} 7. Be3 {[%emt 0:04:15]} e5 {[%emt 0:00:40]} 8. Nge2 {[%emt 0:09:10]} c5 {[%emt 0:00:13]} 9. O-O {[%emt 0:02:59]} Be6 {[%emt 0:00:21]} 10. Qd2 {[%emt 0:04:58]} h5 {[%emt 0:00:27]} 11. Bg5 {[%emt 0:11:05]} Qd7 {[%emt 0:01:01]} 12. f4 {[%emt 0:10:45]} Bh3 {[%emt 0:01:25]} 13. fxe5 {[%emt 0:04:31]} Nh7 {[%emt 0:10:42]} 14. exd6 {[%emt 0:01:59]} Bxg2 {[%emt 0:00:35]} 15. Kxg2 {[%emt 0:00:38]} f6 {[%emt 0:04:22]} 16. Be3 {[%emt 0:01:10]} Qxd6 {[%emt 0:00:42]} 17. Nd5 {[%emt 0:01:59]} Nc6 {[%emt 0:04:03]} 18. Bf4 {[%emt 0:03:48]} Ne5 {[%emt 0:01:23]} 19. b4 {[%emt 0:08:52]} Rc8 {[%emt 0:02:24]} 20. bxc5 {[%emt 0:00:37]} Rxc5 {[%emt 0:00:37]} 21. d4 {[%emt 0:01:39]} Rxc4 {[%emt 0:02:06]} 22. dxe5 {[%emt 0:01:00]} fxe5 {[%emt 0:00:21]} 23. Be3 {[%emt 0:02:59]} Rxe4 {[%emt 0:00:56]} 24. Ndc3 {[%emt 0:00:50]} Qxd2 {[%emt 0:00:53]} 25. Bxd2 {[%emt 0:00:20]} Rb4 {[%emt 0:00:30]} 26. Rab1 {[%emt 0:05:08]} Rxb1 {[%emt 0:00:50]} 27. Rxb1 {[%emt 0:00:03]} b6 {[%emt 0:00:15]} 28. Ne4 {[%emt 0:01:08]} O-O {[%emt 0:01:35]} 29. Rc1 {[%emt 0:01:30]} Nf6 {[%emt 0:01:21]} 30. Ng5 {[%emt 0:01:33]} Ng4 {[%emt 0:00:43]} 31. Ne4 {[%emt 0:02:15]} Bh6 {[%emt 0:02:54]} 32. Bxh6 {[%emt 0:01:17]} Nxh6 {[%emt 0:00:05]} 33. Rc7 {[%emt 0:00:28]} a5 {[%emt 0:00:30]} 34. Ng5 {[%emt 0:01:33]} Nf7 {[%emt 0:01:40]} 35. Ne4 {[%emt 0:01:44]} g5 {[%emt 0:04:24]} 36. Nf6+ {[%emt 0:01:56]} Kh8 {[%emt 0:01:48]} 37. Nxh5 {[%emt 0:00:53]} e4 {[%emt 0:00:21]} 38. Re7 {[%emt 0:01:06]} Nd6 {[%emt 0:00:26]} 39. Nd4 {[%emt 0:00:52]} Rf7 {[%emt 0:02:53]} 40. Re6 {[%emt 0:01:58]} Rd7 {[%emt 0:00:33]} 41. Rh6+ {[%emt 0:32:52]} Kg8 {[%emt 0:30:21]} 42. Nf6+ {[%emt 0:01:16]} Kg7 {[%emt 0:00:14]} 43. Rh7+ {[%emt 0:00:51]} Kxf6 {[%emt 0:00:08]} 44. Rxd7 {[%emt 0:00:16]} Ke5 {[%emt 0:00:18]} 45. Nc6+ {[%emt 0:01:03]} Ke6 {[%emt 0:00:13]} 46. Re7+ {[%emt 0:00:28]} Kd5 {[%emt 0:00:12]} 47. Nd8 {[%emt 0:01:43]} Kc4 {[%emt 0:00:34] normal} 1-0

[Event "DVM U20w 2019"]
[Site "Braunschweig"]
[Date "2019.12.29"]
[Round "6"]
[White "Daoud, Shahnaz"]
[Black "Wilhelm, Anna-Lena"]
[Result "0-1"]
[ECO "B08"]
[WhiteElo "1000"]
[BlackElo "1291"]
[Annotator "NA"]
[PlyCount "48"]
[EventDate "2019.12.27"]
[EventType "team-tourn"]
[EventRounds "7"]
[EventCountry "GER"]
[SourceTitle "playchess.com"]
[Source "ChessBase"]
[SourceQuality "1"]
[WhiteTeam "SK Lehrte 1919"]
[BlackTeam "SG Blau-Weiß Stadtilm"]
[TimeControl "40/5400+30:1800+30"]

1. d4 {[%emt 0:00:00]} Nf6 {[%emt 0:00:00]} 2. Nf3 {[%emt 0:00:00]} g6 {[%emt 0:01:24]} 3. Nc3 {[%emt 0:01:38]} Bg7 {[%emt 0:06:32]} 4. e4 {[%emt 0:00:22]} d6 {[%emt 0:01:29]} 5. Be3 {[%emt 0:08:36]} O-O {[%emt 0:03:52]} 6. Qd2 {[%emt 0:01:03]} Nbd7 {[%emt 0:06:22]} 7. Bh6 {[%emt 0:02:10]} Re8 {[%emt 0:05:57]} 8. Bxg7 {[%emt 0:01:16]} Kxg7 {[%emt 0:00:10]} 9. Be2 {[%emt 0:00:30]} e5 {[%emt 0:16:44]} 10. d5 {[%emt 0:02:51]} Nc5 {[%emt 0:06:47]} 11. Bd3 {[%emt 0:00:58]} Qd7 {[%emt 0:05:34]} 12. O-O-O {[%emt 0:02:14]} Qg4 {[%emt 0:02:19]} 13. Qg5 {[%emt 0:02:11]} Qxg5+ {[%emt 0:12:37]} 14. Nxg5 {[%emt 0:00:35]} h6 {[%emt 0:00:15]} 15. Nf3 {[%emt 0:00:20]} Bd7 {[%emt 0:02:35]} 16. h3 {[%emt 0:01:03]} Reb8 {[%emt 0:03:39]} 17. g4 {[%emt 0:03:03]} Nh7 {[%emt 0:00:41]} 18. Rdg1 {[%emt 0:04:00]} b5 {[%emt 0:02:33]} 19. Ne1 {[%emt 0:32:30]} a5 {[%emt 0:01:33]} 20. Nd1 {[%emt 0:13:41]} Nxd3+ {[%emt 0:05:54]} 21. Nxd3 {[%emt 0:00:15]} c5 {[%emt 0:00:08]} 22. Ne1 {[%emt 0:00:27]} c4 {[%emt 0:02:10]} 23. c3 {[%emt 0:01:17]} b4 {[%emt 0:00:55]} 24. Nc2 {[%emt 0:00:35]} Ba4 {[%emt 0:00:58] normal} 0-1

[Event "DVM U20w 2019"]
[Site "Braunschweig"]
[Date "2019.12.29"]
[Round "6"]
[White "Prölß, Clara"]
[Black "Hallfarth, Luise"]
[Result "0-1"]
[ECO "B32"]
[WhiteElo "1000"]
[BlackElo "1517"]
[Annotator "NA"]
[PlyCount "50"]
[EventDate "2019.12.27"]
[EventType "team-tourn"]
[EventRounds "7"]
[EventCountry "GER"]
[SourceTitle "playchess.com"]
[Source "ChessBase"]
[SourceQuality "1"]
[WhiteTeam "SC Bavaria Regensburg"]
[BlackTeam "SK Nordhorn-Blanke"]
[TimeControl "40/5400+30:1800+30"]

1. e4 {[%emt 0:00:00]} c5 {[%emt 0:00:00]} 2. Nf3 {[%emt 0:00:00]} Nc6 {[%emt 0:00:00]} 3. d4 {[%emt 0:00:35]} cxd4 {[%emt 0:00:00]} 4. Nxd4 {[%emt 0:00:13]} g6 {[%emt 0:00:00]} 5. Bc4 {[%emt 0:03:21]} Bg7 {[%emt 0:00:09]} 6. Nxc6 {[%emt 0:01:44]} bxc6 {[%emt 0:00:17]} 7. O-O {[%emt 0:02:16]} Nf6 {[%emt 0:00:30]} 8. Nc3 {[%emt 0:06:26]} d6 {[%emt 0:01:59]} 9. Be3 {[%emt 0:03:35]} O-O {[%emt 0:00:35]} 10. f3 {[%emt 0:03:17]} Bb7 {[%emt 0:03:32]} 11. Bb3 {[%emt 0:04:02]} d5 {[%emt 0:00:33]} 12. Qd2 {[%emt 0:12:24]} e5 {[%emt 0:01:38]} 13. Bh6 {[%emt 0:03:58]} Qb6+ {[%emt 0:01:21]} 14. Kh1 {[%emt 0:02:02]} Rfd8 {[%emt 0:00:22]} 15. Qg5 {[%emt 0:04:29]} Qc7 {[%emt 0:02:21]} 16. Bxg7 {[%emt 0:01:58]} Kxg7 {[%emt 0:00:17]} 17. Rfe1 {[%emt 0:05:44]} h6 {[%emt 0:02:51]} 18. Qh4 {[%emt 0:04:20]} d4 {[%emt 0:01:06]} 19. Na4 {[%emt 0:01:33]} c5 {[%emt 0:00:46]} 20. Rad1 {[%emt 0:05:26]} c4 {[%emt 0:00:50]} 21. g4 {[%emt 0:06:58]} cxb3 {[%emt 0:00:57]} 22. axb3 {[%emt 0:01:02]} Ba6 {[%emt 0:04:11]} 23. g5 {[%emt 0:00:59]} hxg5 {[%emt 0:00:19]} 24. Qxg5 {[%emt 0:00:15]} Rh8 {[%emt 0:00:35] normal} 25. Rg1 {[%emt 0:02:37] normal} Be2 {[%emt 0:02:13] normal} 0-1

[Event "DVM U20w 2019"]
[Site "Braunschweig"]
[Date "2019.12.29"]
[Round "6"]
[White "Danilova, Sofia"]
[Black "Sereda, Yaroslava"]
[Result "0-1"]
[ECO "A05"]
[WhiteElo "980"]
[BlackElo "1726"]
[Annotator "NA"]
[PlyCount "68"]
[EventDate "2019.12.27"]
[EventType "team-tourn"]
[EventRounds "7"]
[EventCountry "GER"]
[SourceTitle "playchess.com"]
[Source "ChessBase"]
[SourceQuality "1"]
[WhiteTeam "SV Lingen"]
[BlackTeam "SG Solingen"]
[TimeControl "40/5400+30:1800+30"]

1. Nf3 {[%emt 0:00:00]} Nf6 {[%emt 0:00:00]} 2. g3 {[%emt 0:00:00]} g6 {[%emt 0:00:09]} 3. Bg2 {[%emt 0:00:14]} Bg7 {[%emt 0:00:07]} 4. O-O {[%emt 0:00:19]} O-O {[%emt 0:00:13]} 5. Nc3 {[%emt 0:00:09]} d5 {[%emt 0:00:48]} 6. d3 {[%emt 0:01:01]} c5 {[%emt 0:02:16]} 7. e4 {[%emt 0:01:52]} d4 {[%emt 0:20:54]} 8. Nd5 {[%emt 0:00:48]} Nxd5 {[%emt 0:00:53]} 9. exd5 {[%emt 0:00:16]} Qxd5 {[%emt 0:02:17]} 10. c4 {[%emt 0:00:34]} dxc3 {[%emt 0:01:17]} 11. Ng5 {[%emt 0:01:47]} Qd8 {[%emt 0:00:26]} 12. bxc3 {[%emt 0:02:05]} Bxc3 {[%emt 0:01:35]} 13. Rb1 {[%emt 0:00:43]} Nc6 {[%emt 0:01:55]} 14. Ne4 {[%emt 0:00:52]} Bd4 {[%emt 0:02:45]} 15. Bb2 {[%emt 0:01:44]} Bxb2 {[%emt 0:00:38]} 16. Rxb2 {[%emt 0:00:26]} Qd4 {[%emt 0:00:42]} 17. Rb5 {[%emt 0:03:03]} a6 {[%emt 0:13:43]} 18. Rxc5 {[%emt 0:00:48]} Bf5 {[%emt 0:01:48]} 19. Rc4 {[%emt 0:01:08]} Qd8 {[%emt 0:01:54]} 20. Rc3 {[%emt 0:07:19]} Qa5 {[%emt 0:04:44]} 21. Qd2 {[%emt 0:01:21]} Nd4 {[%emt 0:02:30]} 22. Re1 {[%emt 0:00:53]} Bxe4 {[%emt 0:04:44]} 23. Rxe4 {[%emt 0:01:47]} Rac8 {[%emt 0:06:31]} 24. Rxd4 {[%emt 0:02:51]} Qxc3 {[%emt 0:00:23]} 25. Qf4 {[%emt 0:01:04]} Qe1+ {[%emt 0:00:21]} 26. Bf1 {[%emt 0:01:38]} Rc1 {[%emt 0:00:32]} 27. Kg2 {[%emt 0:00:36]} Qxf1+ {[%emt 0:00:10]} 28. Kf3 {[%emt 0:00:19]} Rc2 {[%emt 0:01:59]} 29. Kg4 {[%emt 0:00:35]} Rxf2 {[%emt 0:00:33]} 30. Qe5 {[%emt 0:00:52]} Qd1+ {[%emt 0:01:02]} 31. Kh4 {[%emt 0:00:59]} Rxh2+ {[%emt 0:00:11]} 32. Kg5 {[%emt 0:00:35]} f6+ {[%emt 0:00:54]} 33. Kf4 {[%emt 0:00:34]} Rf2+ {[%emt 0:00:19]} 34. Ke4 {[%emt 0:00:30]} Qf3# {[%emt 0:00:20] normal} 0-1

[Event "DVM U20w 2019"]
[Site "Braunschweig"]
[Date "2019.12.30"]
[Round "7"]
[White "Köhler, Inken"]
[Black "Bardorz, Jana"]
[Result "1/2-1/2"]
[ECO "C68"]
[WhiteElo "1998"]
[BlackElo "2054"]
[Annotator "NA"]
[PlyCount "117"]
[EventDate "2019.12.27"]
[EventType "team-tourn"]
[EventRounds "7"]
[EventCountry "GER"]
[SourceTitle "playchess.com"]
[Source "ChessBase"]
[SourceQuality "1"]
[WhiteTeam "TuRa Harksheide Norderstedt"]
[BlackTeam "SC Bavaria Regensburg"]
[TimeControl "40/5400+30:1800+30"]

1. e4 {[%emt 0:00:00]} e5 {[%emt 0:00:00]} 2. Nf3 {[%emt 0:00:00]} Nc6 {[%emt 0:00:00]} 3. Bb5 {[%emt 0:00:00]} a6 {[%emt 0:00:00]} 4. Bxc6 {[%emt 0:00:00]} dxc6 {[%emt 0:00:00] unterminated} 5. O-O {[%emt 0:00:00] unterminated} Bg4 {[%emt 0:03:59]} 6. h3 {[%emt 0:00:30] unterminated} Bh5 $11 {[%emt 0:04:44]} 7. d3 {[%emt 0:02:00]} Bd6 {[%emt 0:09:33]} 8. Be3 {[%emt 0:02:13]} Qe7 {[%emt 0:02:41]} 9. Nbd2 {[%emt 0:02:11]} O-O-O {[%emt 0:04:23]} 10. c3 {[%emt 0:02:56]} Bc5 {[%emt 0:08:19]} 11. Bxc5 {[%emt 0:02:41]} Qxc5 {[%emt 0:00:12]} 12. Qc2 {[%emt 0:00:14]} f6 {[%emt 0:05:15]} 13. d4 {[%emt 0:07:39]} Qe7 {[%emt 0:04:02]} 14. Rfe1 {[%emt 0:08:34]} g5 {[%emt 0:02:50]} 15. Re3 {[%emt 0:04:42]} Nh6 {[%emt 0:05:20]} 16. dxe5 {[%emt 0:02:16]} g4 {[%emt 0:04:49]} 17. Nd4 {[%emt 0:10:12]} fxe5 {[%emt 0:01:57]} 18. Nf5 {[%emt 0:00:49]} Qf6 {[%emt 0:06:00]} 19. Nxh6 {[%emt 0:02:53]} Qxh6 {[%emt 0:00:08]} 20. Nf1 {[%emt 0:00:34]} Rhg8 {[%emt 0:02:54]} 21. h4 {[%emt 0:12:02]} Rgf8 {[%emt 0:02:55]} 22. g3 {[%emt 0:08:56]} Rf6 {[%emt 0:02:24]} 23. Rd1 {[%emt 0:01:46]} Rfd6 {[%emt 0:01:03]} 24. Red3 {[%emt 0:02:09]} Bg6 {[%emt 0:03:15]} 25. Rxd6 {[%emt 0:01:56]} cxd6 {[%emt 0:00:40]} 26. Qe2 {[%emt 0:01:31]} Bh5 {[%emt 0:02:36]} 27. Ne3 {[%emt 0:01:46]} Qe6 {[%emt 0:01:29]} 28. b3 {[%emt 0:05:18]} Bg6 {[%emt 0:03:20]} 29. Nc4 {[%emt 0:06:27]} h5 {[%emt 0:02:54]} 30. Qe3 {[%emt 0:01:32]} Kb8 {[%emt 0:03:38]} 31. Qg5 {[%emt 0:02:39]} Rd7 {[%emt 0:03:46]} 32. Nb6 {[%emt 0:04:49]} Re7 {[%emt 0:02:01]} 33. Qd2 {[%emt 0:02:40]} Bxe4 {[%emt 0:04:19]} 34. c4 {[%emt 0:00:28]} Bf3 {[%emt 0:02:39]} 35. Qxd6+ {[%emt 0:00:27]} Qxd6 {[%emt 0:01:15]} 36. Rxd6 {[%emt 0:00:04]} e4 {[%emt 0:01:07]} 37. c5 {[%emt 0:00:41]} Kc7 {[%emt 0:00:53]} 38. Na8+ {[%emt 0:00:52]} Kc8 {[%emt 0:00:23]} 39. Nb6+ {[%emt 0:00:17]} Kc7 {[%emt 0:00:05]} 40. Nc4 {[%emt 0:00:21]} Rd7 {[%emt 0:00:40]} 41. Rxd7+ {[%emt 0:32:54]} Kxd7 {[%emt 0:30:08]} 42. Kf1 {[%emt 0:00:14]} Ke6 {[%emt 0:00:00]} 43. Na5 {[%emt 0:00:00]} Kd5 {[%emt 0:00:00]} 44. Nxb7 {[%emt 0:00:00]} Kd4 {[%emt 0:00:00]} 45. b4 {[%emt 0:00:00]} e3 {[%emt 0:00:00]} 46. fxe3+ {[%emt 0:00:00]} Kxe3 {[%emt 0:00:00]} 47. Nd6 {[%emt 0:00:00]} Bd5 {[%emt 0:00:00]} 48. a4 {[%emt 0:00:00]} Kf3 {[%emt 0:00:00]} 49. Nf5 {[%emt 0:00:00]} Be4 {[%emt 0:00:00]} 50. Nd6 {[%emt 0:00:00]} Bd5 {[%emt 0:00:24]} 51. Nf5 {[%emt 0:00:00]} Be4 {[%emt 0:04:58]} 52. Ng7 {[%emt 0:00:00]} Kxg3 {[%emt 0:00:50]} 53. Nxh5+ {[%emt 0:00:00]} Kxh4 {[%emt 0:00:05]} 54. Nf6 {[%emt 0:00:00]} Bf3 {[%emt 0:00:08]} 55. Kg1 {[%emt 0:00:00]} Kg5 {[%emt 0:00:41]} 56. Nd7 {[%emt 0:00:00]} Kf5 {[%emt 0:00:31]} 57. Nb8 {[%emt 0:00:00]} Ke5 {[%emt 0:00:36]} 58. Nxa6 {[%emt 0:00:00]} Kd5 {[%emt 0:00:29]} 59. b5 {[%emt 0:00:06] normal} 1/2-1/2

[Event "DVM U20w 2019"]
[Site "Braunschweig"]
[Date "2019.12.30"]
[Round "7"]
[White "Sherif, Amina"]
[Black "Oberhofer, Marie"]
[Result "0-1"]
[ECO "B53"]
[WhiteElo "1945"]
[BlackElo "1700"]
[Annotator "NA"]
[PlyCount "26"]
[EventDate "2019.12.27"]
[EventType "team-tourn"]
[EventRounds "7"]
[EventCountry "GER"]
[SourceTitle "playchess.com"]
[Source "ChessBase"]
[SourceQuality "1"]
[WhiteTeam "TuRa Harksheide Norderstedt"]
[BlackTeam "SC Bavaria Regensburg"]
[TimeControl "40/5400+30:1800+30"]

1. e4 {[%emt 0:00:00]} c5 {[%emt 0:00:00]} 2. Nf3 {[%emt 0:00:00]} d6 {[%emt 0:00:00]} 3. d4 {[%emt 0:00:02]} cxd4 {[%emt 0:00:00]} 4. Qxd4 {[%emt 0:00:10] unterminated} Nc6 $14 {[%emt 0:00:47]} 5. Bb5 {[%emt 0:05:16]} Bd7 {[%emt 0:01:33]} 6. Bxc6 {[%emt 0:00:16]} Bxc6 {[%emt 0:00:27]} 7. c4 {[%emt 0:00:08]} Nf6 {[%emt 0:01:48]} 8. Nc3 {[%emt 0:00:08]} e6 {[%emt 0:09:24]} 9. O-O {[%emt 0:01:36]} Be7 {[%emt 0:03:12]} 10. b3 {[%emt 0:01:14]} O-O {[%emt 0:01:07]} 11. Bb2 {[%emt 0:00:27]} Nd7 {[%emt 0:10:50]} 12. Rad1 {[%emt 0:05:42]} e5 {[%emt 0:01:32]} 13. Qe3 {[%emt 0:02:58]} f5 {[%emt 0:05:35] normal} 0-1

[Event "DVM U20w 2019"]
[Site "Braunschweig"]
[Date "2019.12.30"]
[Round "7"]
[White "Bashylina, Luisa"]
[Black "Peglau, Sarah"]
[Result "1/2-1/2"]
[ECO "B12"]
[WhiteElo "1935"]
[BlackElo "1760"]
[Annotator "NA"]
[PlyCount "31"]
[EventDate "2019.12.27"]
[EventType "team-tourn"]
[EventRounds "7"]
[EventCountry "GER"]
[SourceTitle "playchess.com"]
[Source "ChessBase"]
[SourceQuality "1"]
[WhiteTeam "SG Solingen"]
[BlackTeam "Schachzentrum Seeblick"]
[TimeControl "40/5400+30:1800+30"]

1. e4 c6 2. d4 d5 3. e5 Bf5 {unterminated} 4. Nd2 Qc7 5. Nb3 {unterminated} e6 6. Nf3 {unterminated} c5 $11 7. dxc5 Bxc5 8. Bb5+ Nd7 9. Bxd7+ Kxd7 10. Nxc5+ Qxc5 11. Nd4 Bg6 12. O-O Ne7 13. Be3 Qc7 14. Qe2 Nc6 15. Nb5 Qxe5 16. c4 {normal} 1/2-1/2